Workbook

Sheet Sheet1
A1: D | B1: ExpiryDate | C1: LotQty | D1: CNCMargin (in%) | E1: CNCMargin (inRs) | F1: CNCExposure (inX) | G1: RegularIntraday Exposure(inX) | H1: PremiumIntraday Exposure(inX) | I1: RegularBO Exposure(inX) | J1: PremiumBO Exposure(inX) | K1: RegularIntraday Exposure(inRs) | L1: PremiumIntraday Exposure(inRs) | M1: RegularBO Exposure(inRs) | N1: PremiumBO Exposure(inRs)
A2: GBPUSD | B2: =VLOOKUP(A2,[1]Sheet1!$A$2:$C$9,3,0) -> 2023-04-26 | C2: 1000 | D2: =VLOOKUP(A2,[2]Sheet1!$A$1:$J$22,10,0) -> 4.75 | E2: =VLOOKUP(A2,[2]Sheet1!$A$1:$I$22,9,0) -> 4842 | F2: 1 | G2: 1 | H2: 1 | I2: 1 | J2: 1 | K2: =E2 -> 4842 | L2: =E2 -> 4842 | M2: =E2 -> 4842 | N2: =E2 -> 4842
A3: GBPINR | B3: =VLOOKUP(A3,[1]Sheet1!$A$2:$C$9,3,0) -> 2023-04-26 | C3: 1000 | D3: =VLOOKUP(A3,[2]Sheet1!$A$1:$J$22,10,0) -> 3.91 | E3: =VLOOKUP(A3,[2]Sheet1!$A$1:$I$22,9,0) -> 3986 | F3: 1 | G3: 1 | H3: 1 | I3: 1 | J3: 1 | K3: =E3 -> 3986 | L3: =E3 -> 3986 | M3: =E3 -> 3986 | N3: =E3 -> 3986
A4: JPYINR | B4: =VLOOKUP(A4,[1]Sheet1!$A$2:$C$9,3,0) -> 2023-04-26 | C4: 1000 | D4: =VLOOKUP(A4,[2]Sheet1!$A$1:$J$22,10,0) -> 4.54 | E4: =VLOOKUP(A4,[2]Sheet1!$A$1:$I$22,9,0) -> 2779 | F4: 1 | G4: 1 | H4: 1 | I4: 1 | J4: 1 | K4: 2779 | L4: 2779 | M4: 2779 | N4: 2779
A5: USDJPY | B5: =VLOOKUP(A5,[1]Sheet1!$A$2:$C$9,3,0) -> 2023-04-26 | C5: 1000 | D5: =VLOOKUP(A5,[2]Sheet1!$A$1:$J$22,10,0) -> 5.25 | E5: =VLOOKUP(A5,[2]Sheet1!$A$1:$I$22,9,0) -> 4292 | F5: 1 | G5: 1 | H5: 1 | I5: 1 | J5: 1 | K5: 4292 | L5: 4292 | M5: 4292 | N5: 4292
A6: EURUSD | B6: =VLOOKUP(A6,[1]Sheet1!$A$2:$C$9,3,0) -> 2023-04-26 | C6: 1000 | D6: =VLOOKUP(A6,[2]Sheet1!$A$1:$J$22,10,0) -> 4.09 | E6: =VLOOKUP(A6,[2]Sheet1!$A$1:$I$22,9,0) -> 3686 | F6: 1 | G6: 1 | H6: 1 | I6: 1 | J6: 1 | K6: 3686 | L6: 3686 | M6: 3686 | N6: 3686
A7: EURINR | B7: =VLOOKUP(A7,[1]Sheet1!$A$2:$C$9,3,0) -> 2023-04-26 | C7: 1000 | D7: =VLOOKUP(A7,[2]Sheet1!$A$1:$J$22,10,0) -> 3.11 | E7: =VLOOKUP(A7,[2]Sheet1!$A$1:$I$22,9,0) -> 2810 | F7: 1 | G7: 1 | H7: 1 | I7: 1 | J7: 1 | K7: 2810 | L7: 2810 | M7: 2810 | N7: 2810
A8: USDINR | B8: =VLOOKUP(A8,[1]Sheet1!$A$2:$C$9,3,0) -> 2023-04-26 | C8: 1000 | D8: =VLOOKUP(A8,[2]Sheet1!$A$1:$J$22,10,0) -> 2.32 | E8: =VLOOKUP(A8,[2]Sheet1!$A$1:$I$22,9,0) -> 1897 | F8: 1 | G8: 1 | H8: 1 | I8: 1 | J8: 1 | K8: 1897 | L8: 1897 | M8: 1897 | N8: 1897

Sheet Sheet2

Sheet Sheet3
